bitfinex-derivatives/quotes_ETHF0:USTF0_20250110
["timestamp","ask_amount","ask_price","bid_price","bid_amount"]
[1736511433587,1.10097057,3302.3,3302.2,0.30283]
[1736511433786,1.40380057,3302.3,3302.2,41.10283]
[1736511434086,1.40380057,3302.3,3302.2,40.8]
[1736511434287,0.30285,3302.1,3302.0,0.447]
[1736511434494,1.40382057,3302.1,3302.0,0.447]
[1736511434789,1.40382057,3302.1,3302.0,0.74986]
[1736511434990,1.40382057,3302.1,3302.0,0.447]
[1736511435392,0.30285,3302.1,3302.0,0.447]
[1736511436197,0.30285,3302.1,3302.0,0.74986]
[1736511436694,0.30285,3302.1,3302.0,0.447]
[1736511437490,0.9347,3302.2,3302.0,0.447]
[1736511437695,1.23755,3302.2,3302.0,0.74985]
[1736511437894,0.30285,3302.1,3302.0,0.447]
[1736511438094,0.30285,3302.1,3302.0,0.74986]
[1736511438794,0.30283,3302.3,3302.0,0.447]
[1736511438984,3.51062,3302.4,3302.3,0.30283]
[1736511439186,7.60220783,3303.0,3302.2,3.2078]
[1736511439387,0.4756,3302.9,3302.2,3.2078]
[1736511439594,7.90054086,3302.9,3302.8,0.30278]
[1736511439789,7.90053086,3302.9,3302.8,0.30278]
[1736511439988,7.59776086,3302.9,3302.8,0.30278]
[1736511440194,7.90053086,3302.9,3302.8,0.30278]
[1736511440591,7.59776086,3302.9,3302.8,0.30278]
[1736511441085,4.71555,3303.2,3303.0,0.30276]
[1736511441286,3.51055,3303.2,3302.7,0.4718]
[1736511441691,3.51055,3303.2,3303.1,0.30276]
[1736511442091,3.51055,3303.2,3302.7,0.4718]
[1736511442395,5.53466609,3303.2,3302.9,0.30277]
[1736511442598,0.30277,3303.0,3302.9,0.30277]
[1736511442893,0.30277,3303.0,3302.9,41.10277]
[1736511443099,0.30276,3303.1,3302.9,41.10277]
[1736511443299,0.30276,3303.1,3302.9,0.30277]
[1736511443501,5.83741609,3303.2,3303.0,0.30276]
[1736511443799,5.53466609,3303.2,3303.1,0.30276]
[1736511444291,5.83741609,3303.2,3303.0,0.30276]
[1736511445601,5.53466609,3303.2,3302.7,0.4718]
[1736511445788,2.62964609,3302.9,3302.7,0.4718]
[1736511445995,5.53466609,3303.2,3302.8,0.30278]
[1736511446902,0.30277,3302.9,3302.8,0.30278]
[1736511448697,0.30277,3303.0,3302.8,0.30278]
[1736511450204,0.30277,3303.0,3302.7,0.4718]
[1736511450399,0.30277,3303.0,3302.9,0.30277]
[1736511450601,4.4128,3303.2,3302.7,0.4718]
[1736511450895,7.12216086,3303.4,3303.0,5.53466609]
[1736511451100,7.12216086,3303.4,3303.3,0.30274]
[1736511452000,5.23786609,3303.8,3303.1,0.4448]
[1736511452200,0.30272,3303.5,3303.4,0.30272]
[1736511453306,0.30273,3303.5,3303.2,0.30275]
[1736511453504,0.30272,3303.5,3303.4,0.30272]
[1736511454201,5.23786609,3303.8,3303.3,0.4479]
[1736511454705,0.30272,3303.6,3303.4,0.30273]
[1736511455099,0.4549,3303.5,3303.4,0.30273]
[1736511456001,1.205,3303.7,3303.6,0.30271]
[1736511457208,1.5077,3303.7,3303.6,0.30271]
[1736511457710,1.205,3303.7,3303.6,0.30271]
[1736511458008,1.5077,3303.7,3303.6,0.30271]
[1736511458202,1.5077,3303.7,3303.4,3.2078]
[1736511458407,1.205,3303.7,3303.6,0.30271]
[1736511458808,1.5077,3303.7,3303.6,0.30271]
[1736511459409,1.205,3303.7,3303.6,0.30271]
[1736511459805,0.30269,3303.9,3303.8,0.30269]
[1736511460110,3.2078,3304.2,3303.5,0.75681]
[1736511460407,1.204,3304.3,3303.5,0.75681]
[1736511460408,0.30265,3304.3,3303.8,3.2078]
[1736511460607,0.30265,3304.3,3303.9,1.3561]
[1736511460802,0.30265,3304.3,3304.2,0.30266]
[1736511461008,1.29249,3304.4,3303.9,1.3561]
[1736511461206,1.29249,3304.4,3304.1,0.30266]
[1736511461512,0.30265,3304.3,3304.1,0.30266]
[1736511462414,3.61935609,3304.4,3304.1,0.30266]
[1736511462612,0.30266,3304.2,3304.1,0.30266]
[1736511463215,0.30266,3304.2,3303.9,0.9185]
[1736511463512,0.30266,3304.2,3304.0,0.30267]
[1736511464813,0.30266,3304.2,3304.1,0.30266]
[1736511465014,0.30266,3304.2,3304.0,0.30267]
[1736511465810,0.30265,3304.3,3304.1,0.30266]
[1736511466115,0.30267,3304.1,3304.0,0.30267]
[1736511466304,3.61935609,3304.4,3303.9,1.66068]
[1736511466615,0.30267,3304.1,3303.9,1.66068]
[1736511467823,0.30267,3304.1,3304.0,0.30267]
[1736511468018,0.30267,3304.1,3303.9,1.358]
[1736511468222,0.30267,3304.1,3303.9,1.66068]
[1736511468521,0.30267,3304.1,3304.0,0.30267]
[1736511468818,3.61935609,3304.4,3303.9,0.9185]
[1736511469113,0.30268,3303.9,3303.8,3.2078]
[1736511471317,0.30272,3303.5,3303.4,0.4705]
[1736511471520,3.2078,3303.7,3303.0,0.4354]
[1736511471714,0.30275,3303.2,3303.1,0.30275]
[1736511471916,0.30275,3303.2,3303.1,41.10275]
[1736511472117,0.4361,3303.3,3303.1,40.8]
[1736511472317,0.73884,3303.3,3303.2,0.30275]
[1736511473117,0.4361,3303.3,3303.2,0.30275]
[1736511473313,0.30273,3303.4,3303.3,0.30274]
[1736511474018,0.30273,3303.4,3303.1,40.8]
[1736511474019,0.30274,3303.3,3303.2,0.30274]
[1736511480021,0.4702,3303.6,3303.1,40.8]
[1736511480223,0.30273,3303.4,3303.3,0.30273]
[1736511481224,0.30274,3303.3,3303.2,0.30274]
[1736511481617,2.32686609,3303.5,3303.0,3.2078]
[1736511481816,0.30279,3302.7,3302.6,0.4467]
[1736511482319,0.30279,3302.7,3302.6,41.2467]
[1736511482517,0.30279,3302.7,3302.6,41.26376874]
[1736511483121,0.30279,3302.7,3302.6,40.81706874]
[1736511483730,0.30279,3302.7,3302.6,0.01706874]
[1736511484629,0.30279,3302.7,3302.6,40.81706874]
[1736511485025,0.30279,3302.7,3302.6,0.01706874]
[1736511485726,0.30279,3302.7,3302.6,40.81706874]
[1736511486519,0.30279,3302.7,3302.6,0.01706874]
[1736511487731,3.6644,3302.8,3302.0,3.51066]
[1736511487922,0.30284,3302.2,3302.0,3.51066]
[1736511489125,0.30284,3302.2,3302.0,3.2078]
[1736511489325,0.30284,3302.2,3302.1,0.30285]
[1736511489929,0.30284,3302.2,3302.1,40.8]
[1736511493733,0.30284,3302.2,3302.1,41.10285]
[1736511493934,0.30284,3302.2,3302.1,40.8]
[1736511496329,0.30285,3302.1,3302.0,0.4359]
[1736511496836,0.30285,3302.1,3302.0,41.2359]
[1736511497436,0.4691,3302.4,3302.0,41.2359]
[1736511497631,0.4691,3302.4,3301.6,3.2078]
[1736511497632,2.32686609,3302.3,3301.6,3.2078]
[1736511497833,2.32686609,3301.7,3301.2,3.2078]
[1736511498037,0.30292,3301.3,3301.2,3.51073]
[1736511498336,0.30292,3301.3,3301.2,44.0078]
[1736511499038,0.30292,3301.3,3301.2,40.8]
[1736511499637,0.9121,3301.6,3300.9,0.9049]
[1736511499837,0.30294,3301.1,3300.9,1.20785]
[1736511500227,0.9121,3301.6,3301.0,41.10294]
[1736511500436,0.30294,3301.1,3301.0,41.10294]
[1736511500827,0.30294,3301.2,3301.0,40.8]
[1736511501030,0.30294,3301.1,3301.0,41.10294]
[1736511501338,0.30295,3301.0,3300.9,1.20785]
[1736511501837,0.30296,3300.9,3300.8,3.2078]
[1736511505136,0.30296,3300.9,3300.8,3.51077]
[1736511505642,0.30295,3301.0,3300.8,3.51077]
[1736511505836,0.30296,3300.9,3300.8,3.51077]
[1736511506336,3.2078,3301.3,3300.8,3.2078]
[1736511506542,0.30292,3301.4,3301.1,0.30294]
[1736511506738,0.30292,3301.3,3301.2,0.4721]
[1736511506941,0.30292,3301.3,3301.1,0.30294]
[1736511507247,0.30293,3301.3,3300.9,0.4721]
[1736511507441,0.30293,3301.2,3301.0,0.30294]
[1736511507834,0.4469,3301.1,3301.0,0.30294]
[1736511508034,0.4469,3301.1,3301.0,0.30295]
[1736511508837,0.74984,3301.1,3300.9,0.4721]
[1736511509043,0.4469,3301.1,3301.0,0.30295]
[1736511510242,2.62978609,3301.4,3301.0,0.30295]
[1736511510443,2.62978609,3301.4,3300.9,0.4721]
[1736511510444,3.08268609,3301.4,3301.2,0.30293]
[1736511511746,0.30292,3301.3,3301.1,0.75823]
[1736511512047,3.08268609,3301.4,3301.2,0.30293]
[1736511512343,0.4529,3301.4,3301.1,0.4553]
[1736511512546,0.30291,3301.5,3301.3,0.30291]
[1736511512944,0.30291,3301.5,3301.4,0.30291]
[1736511513348,0.30292,3301.4,3301.2,0.30292]
[1736511513942,0.4483,3301.6,3300.9,0.4721]
[1736511514249,0.30291,3301.5,3300.9,0.4721]
[1736511514442,0.30291,3301.5,3301.4,0.30291]
[1736511514642,0.7512,3301.6,3301.5,0.3029]
[1736511514943,0.7512,3301.6,3301.4,0.30291]
[1736511515148,0.7512,3301.6,3301.5,0.439]
[1736511519049,1.205,3302.0,3301.5,0.439]
[1736511519352,0.30288,3301.8,3301.7,0.30288]
[1736511521544,0.75197,3301.9,3301.6,3.2078]
[1736511521746,0.4491,3301.9,3301.8,0.30288]
[1736511523848,3.2078,3302.5,3301.7,2.32686609]
[1736511524053,0.4628,3302.3,3302.2,0.30284]
[1736511524451,0.4533,3302.5,3302.1,41.2515]
[1736511524649,0.8862,3302.5,3302.4,0.30282]
[1736511525351,0.4329,3302.5,3302.4,0.30282]
[1736511527548,0.30282,3302.4,3302.3,0.30282]
[1736511527748,0.73572,3302.5,3302.4,0.30282]
[1736511528249,0.4329,3302.5,3302.1,41.2515]
[1736511528552,0.30282,3302.4,3302.3,0.30282]
[1736511528754,0.73571,3302.5,3302.4,0.30282]
[1736511530560,0.4329,3302.5,3302.4,0.30282]
[1736511531757,1.6573,3302.9,3302.1,41.2515]
[1736511531963,2.1341,3302.9,3302.8,0.30278]
[1736511533053,2.43688,3302.9,3302.7,0.30279]
[1736511533464,2.43688,3302.9,3302.8,0.30278]
[1736511533951,2.1341,3302.9,3302.8,0.30278]
[1736511534149,2.43687,3302.9,3302.8,0.30278]
[1736511534349,2.1341,3302.9,3302.8,0.30278]
[1736511535259,2.43687,3302.9,3302.8,0.30278]
[1736511535458,7.12216086,3303.2,3303.1,0.30276]
[1736511536661,7.12216086,3303.2,3303.1,0.73926]
[1736511537357,0.4723,3303.6,3303.1,0.73926]
[1736511537556,0.4723,3303.6,3303.5,0.30272]
[1736511538366,0.77501,3303.6,3303.5,0.30272]
[1736511539369,0.4723,3303.6,3303.5,0.30272]
[1736511541763,0.4723,3303.6,3303.5,41.10272]
[1736511542469,0.4723,3303.6,3303.5,0.30272]
[1736511550978,0.77501,3303.6,3303.5,0.30272]
[1736511551282,0.4723,3303.6,3303.5,0.30272]
[1736511551482,0.77501,3303.6,3303.5,0.30272]
[1736511551981,0.30276,3303.1,3303.0,0.77586]
[1736511552177,1.2291,3303.6,3302.6,3.2078]
[1736511552178,5.53466609,3303.4,3302.6,3.2078]
[1736511552382,0.30277,3303.0,3302.9,0.30277]
[1736511552583,0.4318,3303.3,3302.6,44.0078]
[1736511552783,0.4388,3302.9,3302.8,0.30278]
[1736511553986,0.74158,3302.9,3302.8,0.30278]
[1736511555084,0.30279,3302.8,3302.7,0.30279]
[1736511555282,0.4388,3302.9,3302.6,40.8]
[1736511555483,0.4388,3302.9,3302.8,0.30278]
[1736511555484,0.74158,3302.9,3302.8,0.30278]
[1736511556384,0.4388,3302.9,3302.8,0.30278]
[1736511556892,0.74157,3302.9,3302.8,0.30278]
[1736511557380,0.3028,3302.6,3302.5,45.21211]
[1736511557586,0.4388,3302.9,3302.6,0.3028]
[1736511557789,0.30279,3302.8,3302.6,0.3028]
[1736511558080,0.4388,3302.9,3302.5,41.7015]
[1736511558286,0.4388,3302.9,3302.8,0.30278]
[1736511560885,0.4388,3302.9,3302.6,0.3028]
[1736511560886,0.30279,3302.8,3302.6,0.3028]
[1736511561085,3.6466,3302.9,3302.5,41.7015]
[1736511561281,0.30282,3302.5,3302.3,0.30282]
[1736511561482,0.4401,3302.4,3302.3,0.30282]
[1736511561683,0.8792,3302.4,3302.3,0.30282]
[1736511562184,0.8792,3302.4,3302.2,40.8]
[1736511562485,0.8792,3302.4,3302.2,0.30283]
[1736511562677,0.30283,3302.3,3302.2,0.30283]
[1736511563280,0.30283,3302.3,3302.1,44.31064]
[1736511563485,0.8792,3302.4,3302.1,44.31064]
[1736511563684,0.30284,3302.3,3302.1,44.31064]
[1736511563979,0.8792,3302.4,3302.3,0.30283]
[1736511564581,0.8792,3302.4,3302.1,44.0078]
[1736511564782,0.30283,3302.3,3302.1,44.0078]
[1736511564987,0.30283,3302.3,3302.2,0.30284]
[1736511565389,1.18202,3302.4,3302.2,0.30284]
[1736511566783,0.30284,3302.2,3302.1,41.10284]
[1736511567387,0.8792,3302.4,3302.1,40.8]
[1736511567587,1.5068,3302.7,3302.5,0.3028]
[1736511567788,0.4539,3302.6,3302.5,0.3028]
[1736511568587,4.115,3302.8,3302.7,0.30279]
[1736511568982,4.115,3302.8,3302.6,1.367]
[1736511569182,4.41779,3302.8,3302.6,1.66979]
[1736511569387,0.30279,3302.7,3302.6,1.20459]
[1736511569588,4.115,3302.8,3302.6,1.20459]
[1736511569785,4.41779,3302.8,3302.6,1.20459]
[1736511570182,4.115,3302.8,3302.6,0.9018]
[1736511570493,0.30279,3302.7,3302.6,0.9018]
[1736511571491,4.41779,3302.8,3302.6,1.2046]
[1736511572192,0.30279,3302.7,3302.6,1.2046]
[1736511572791,0.30279,3302.7,3302.6,0.7374]
[1736511573503,1.204,3302.8,3302.3,0.4595]
[1736511573690,0.30281,3302.6,3302.5,0.30281]
[1736511574685,0.3028,3302.7,3302.6,0.30279]
[1736511576597,3.53086609,3302.8,3302.1,3.2078]
[1736511576890,0.30284,3302.3,3302.2,0.30283]
[1736511577091,0.30284,3302.2,3302.1,3.51064]
[1736511577695,3.2078,3302.7,3302.1,3.2078]
[1736511577992,0.30283,3302.3,3302.2,0.30284]
[1736511578290,0.30283,3302.3,3302.1,3.2078]
[1736511578492,0.73704,3302.2,3302.1,3.51064]
[1736511578692,0.4342,3302.2,3302.1,3.51064]
[1736511579895,0.73704,3302.2,3302.1,3.51064]
[1736511580297,0.4342,3302.2,3301.9,0.4426]
[1736511580596,0.75045,3302.1,3302.0,0.30286]
[1736511580990,0.4476,3302.1,3301.7,0.31776687]
[1736511581199,0.30287,3301.9,3301.8,0.30287]
[1736511581997,0.30286,3302.0,3301.8,0.30287]
[1736511582193,0.30286,3302.0,3301.7,0.31776687]
[1736511582497,3.642,3302.2,3301.7,3.52556687]
[1736511582696,0.4342,3302.2,3302.1,0.30285]
[1736511583095,0.4342,3302.2,3301.8,41.10287]
[1736511583096,0.30286,3302.0,3301.8,41.10287]
[1736511583685,0.4342,3302.2,3301.8,40.8]
[1736511583890,0.4342,3302.2,3302.1,0.30285]
[1736511584091,0.30285,3302.1,3301.9,0.30286]
[1736511584290,0.30285,3302.1,3301.7,3.52556687]
[1736511584486,0.4342,3302.2,3301.8,41.10287]
[1736511584487,0.30286,3302.0,3301.8,41.10287]
[1736511584792,0.4342,3302.2,3301.9,0.30287]
[1736511585094,0.30285,3302.1,3301.8,40.8]
[1736511585293,0.30285,3302.1,3302.0,0.30286]
[1736511585499,0.73705,3302.2,3302.0,0.30286]
[1736511586198,0.73705,3302.2,3301.8,40.8]
[1736511586390,0.4342,3302.2,3302.1,0.30285]
[1736511587896,0.73704,3302.2,3302.1,0.30285]
[1736511588400,0.73704,3302.2,3301.8,40.8]
[1736511588596,0.73704,3302.2,3302.1,0.30285]
[1736511589098,0.30285,3302.1,3302.0,0.30285]
[1736511589299,0.73704,3302.2,3302.1,0.30285]
[1736511589599,0.73704,3302.2,3302.0,0.30285]
[1736511590694,0.73704,3302.2,3302.1,0.30285]
[1736511591598,0.4342,3302.2,3302.1,0.30285]
[1736511591795,3.2078,3302.3,3302.2,0.30284]
[1736511592000,0.4366,3302.7,3302.2,5.53466609]
[1736511592199,14.30892614,3303.2,3302.3,1.3834]
[1736511592200,0.73937,3303.0,3302.3,1.3834]
[1736511592388,0.73937,3303.0,3302.3,2.14046]
[1736511592590,0.73937,3303.0,3302.9,0.30277]
[1736511593193,0.4366,3303.0,3302.3,2.14046]
[1736511593500,0.4366,3303.0,3302.3,1.3834]
[1736511593696,0.4366,3303.0,3302.9,0.30277]
[1736511594698,0.75635,3303.2,3303.0,0.30276]
[1736511595003,1.22025,3303.2,3303.0,0.30276]
[1736511595396,0.30276,3303.1,3302.4,0.75706]
[1736511595596,0.30276,3303.1,3303.0,0.30276]
[1736511596099,0.9175,3303.2,3303.0,0.30276]
[1736511596100,1.22025,3303.2,3303.0,0.30276]
[1736511596492,0.30276,3303.1,3303.0,0.30276]
[1736511597302,0.30276,3303.1,3302.4,0.75706]
[1736511597502,0.30276,3303.1,3302.9,0.30277]
[1736511599891,0.9175,3303.2,3302.4,0.75706]
[1736511599892,0.4639,3303.2,3302.6,3.2078]
[1736511600092,3.2078,3303.3,3302.8,2.32686609]
[1736511600398,3.2078,3303.3,3303.2,0.30275]
[1736511600601,7.56736086,3303.6,3303.3,0.30274]
[1736511600602,9.07407086,3303.6,3303.3,0.30274]
[1736511600804,0.30273,3303.5,3303.2,0.30274]
[1736511601103,0.30274,3303.4,3303.1,3.51055]
[1736511601498,8.77136086,3303.6,3303.1,3.2078]
[1736511601499,0.30275,3303.2,3303.1,3.2078]
[1736511602105,4.4118,3303.5,3302.9,0.898]
[1736511602399,0.30276,3303.0,3302.9,0.898]
[1736511602595,0.30276,3303.0,3302.9,0.4656]
[1736511603201,5.53466609,3303.0,3302.1,4.72825547]
[1736511603397,5.53466609,3303.0,3302.2,0.9046]
[1736511603595,3.2078,3302.5,3302.0,0.30285]
[1736511603801,0.8789,3302.4,3301.8,9.27145547]
[1736511604103,0.8789,3302.4,3301.8,9.57432547]
[1736511604104,0.30286,3302.0,3301.8,9.57432547]
[1736511604305,0.4474,3301.9,3301.8,9.57432547]
[1736511604905,0.4315,3302.4,3301.8,9.27145547]
[1736511605106,0.30284,3302.2,3302.0,0.30285]
[1736511605305,0.4474,3302.3,3301.8,4.5432]
[1736511605502,3.2078,3302.5,3301.8,4.5432]
[1736511605807,0.75021,3302.6,3302.4,0.30281]
[1736511606114,0.4474,3302.6,3302.5,0.4707]
[1736511606302,0.7502,3302.6,3302.5,0.9161]
[1736511607406,1.5068,3302.7,3302.5,1.21891]
[1736511607605,1.204,3302.7,3302.6,0.3028]
[1736511608612,0.4584,3302.9,3302.8,0.30278]
[1736511609408,3.51057,3303.0,3302.8,0.30278]
[1736511609614,3.2078,3303.0,3302.9,0.30277]
[1736511610107,0.30277,3302.9,3302.7,0.30279]
[1736511610315,3.2078,3303.0,3302.8,0.30278]
[1736511610509,0.30277,3302.9,3302.7,0.30279]
[1736511610709,0.30277,3302.9,3302.8,40.8]
[1736511610908,3.6544,3303.0,3302.8,41.10278]
[1736511610909,3.95717,3303.0,3302.8,41.10278]
[1736511611113,3.6544,3303.0,3302.8,40.8]
[1736511611316,0.30277,3302.9,3302.8,40.8]
[1736511612617,0.30277,3302.9,3302.7,0.30279]
[1736511612924,0.30279,3302.8,3302.5,0.9161]
[1736511613110,0.30279,3302.8,3302.7,0.30279]
[1736511613318,0.30279,3302.7,3302.6,0.3028]
[1736511613616,3.6544,3303.0,3302.5,0.9161]
[1736511613817,0.30279,3302.8,3302.7,0.30279]
[1736511614633,0.3028,3302.7,3302.5,42.0189]
[1736511614822,0.3028,3302.7,3302.5,41.7161]
[1736511615013,0.3028,3302.7,3302.6,0.3028]
[1736511615714,0.30279,3302.8,3302.6,0.3028]
[1736511616016,0.30278,3302.9,3302.7,0.30279]
[1736511616221,3.6544,3303.0,3302.6,0.3028]
[1736511616222,0.30279,3302.8,3302.6,0.3028]
[1736511616719,3.6544,3303.0,3302.7,0.30279]
[1736511616920,0.30278,3302.9,3302.7,0.30279]
[1736511618219,3.2078,3303.0,3302.9,0.30277]
[1736511619918,3.51056,3303.0,3302.9,0.30277]
[1736511620113,3.2078,3303.0,3302.9,0.30277]
[1736511623616,3.51056,3303.0,3302.9,0.30277]
[1736511624122,3.2078,3303.0,3302.9,0.30277]
[1736511624820,3.51056,3303.0,3302.9,0.30277]
[1736511625012,3.2078,3303.0,3302.9,0.30277]
[1736511626025,3.51056,3303.0,3302.9,0.30277]
[1736511626324,3.2078,3303.0,3302.9,0.30277]
[1736511626823,7.56936086,3303.3,3303.2,0.30275]
[1736511627025,8.31211735,3303.5,3303.0,2.32686609]
[1736511627220,8.61483735,3303.5,3303.4,0.30273]
[1736511627525,8.31211735,3303.5,3303.4,0.30273]
[1736511628732,0.4343,3303.8,3303.3,3.2078]
[1736511628926,0.4343,3303.8,3303.7,0.3027]
[1736511629429,0.871,3303.8,3303.7,0.3027]
[1736511629841,1.17369,3303.8,3303.7,0.3027]
[1736511630129,1.17369,3303.8,3303.4,0.448]
[1736511630326,1.17369,3303.8,3303.7,0.3027]
[1736511630927,0.871,3303.8,3303.3,3.2078]
[1736511631133,0.30273,3303.4,3303.3,3.2078]
[1736511631725,0.4442,3303.7,3303.1,0.9293]
[1736511631726,0.30274,3303.3,3303.1,0.9293]
[1736511631926,0.77494,3303.3,3303.1,0.30275]
[1736511633124,0.4722,3303.3,3302.9,0.4574]
[1736511633322,0.4722,3303.3,3303.0,0.30276]
[1736511633535,0.30275,3303.2,3303.0,0.30276]
[1736511633727,0.30275,3303.2,3302.9,0.4574]
[1736511633927,0.4722,3303.3,3302.9,0.4574]
[1736511634128,0.4722,3303.3,3303.2,0.30275]
[1736511634633,0.77494,3303.3,3303.2,0.30275]
[1736511636033,0.30275,3303.2,3302.9,0.4574]
[1736511636227,0.30276,3303.0,3302.9,0.76017]
[1736511636627,0.30276,3303.0,3302.9,0.30277]
[1736511637728,0.30276,3303.1,3302.9,0.30277]
[1736511638626,4.09,3303.2,3303.0,0.30276]
[1736511638627,4.39275,3303.2,3303.0,0.30276]
[1736511639023,3.2078,3303.2,3303.1,0.30276]
[1736511639330,1.6762,3303.3,3303.2,0.30275]
[1736511639923,1.97894,3303.3,3303.1,0.30275]
[1736511640238,1.97894,3303.3,3303.2,0.4357]
[1736511640428,1.97894,3303.3,3303.2,0.73845]
[1736511640623,1.6762,3303.3,3303.2,0.73845]
[1736511641731,7.12490949,3303.5,3303.4,0.30273]
[1736511641937,3.95781,3303.6,3303.4,0.30273]
[1736511642232,3.95781,3303.6,3303.3,0.30274]
[1736511642435,3.6551,3303.6,3303.2,0.4357]
[1736511642735,3.6551,3303.6,3303.5,0.30272]
[1736511644230,3.2078,3303.6,3303.5,0.30272]
[1736511644435,7.12490949,3303.7,3303.6,0.30271]
[1736511645839,7.42759949,3303.8,3303.6,0.30271]
[1736511646035,7.12490949,3303.8,3303.2,3.6435]
[1736511646337,0.30271,3303.7,3303.5,0.30271]
[1736511646540,0.30271,3303.7,3303.6,41.10271]
[1736511649135,7.12490949,3303.8,3303.6,44.0078]
[1736511649337,7.12490949,3303.8,3303.7,0.7381]
[1736511649543,0.4409,3303.9,3303.8,0.30269]
[1736511649838,0.4409,3303.9,3303.8,0.76689]
[1736511650539,12.51078479,3304.4,3304.2,0.30265]
[1736511650840,0.4375,3304.3,3304.2,0.30265]
[1736511651241,8.41739949,3304.4,3304.3,0.30265]
[1736511651950,1.29249,3304.4,3304.3,0.30265]
[1736511652844,1.29249,3304.4,3304.0,3.2078]
[1736511653044,1.29249,3304.4,3304.1,0.30266]
[1736511653245,1.29249,3304.4,3304.3,0.30265]
[1736511653643,1.59513,3304.4,3304.2,0.30265]
[1736511654044,1.29249,3304.4,3304.0,3.2078]
[1736511654245,1.29249,3304.4,3304.3,0.30265]
[1736511655441,0.30266,3304.2,3304.1,0.30266]
[1736511655645,1.29249,3304.4,3304.0,3.2078]
[1736511655846,0.4559,3304.1,3304.0,3.51046]
[1736511657246,0.4559,3304.1,3304.0,3.2078]
[1736511657448,0.75856,3304.1,3304.0,3.2078]
[1736511657649,0.75856,3304.1,3304.0,3.51047]
[1736511658748,0.4559,3304.1,3304.0,3.51047]
[1736511661545,1.59513,3304.4,3304.3,0.30265]
[1736511661748,2.05283,3304.4,3304.3,0.30265]
[1736511662052,1.75019,3304.4,3304.3,0.30265]
[1736511662247,2.05283,3304.4,3304.3,0.30265]
[1736511662751,1.75019,3304.4,3304.3,0.30265]
[1736511664041,1.75019,3304.4,3304.0,3.2078]
[1736511664348,2.05283,3304.4,3304.3,0.30265]
[1736511665455,1.75019,3304.4,3304.3,0.30265]
[1736511670357,1.29249,3304.4,3304.3,0.30265]
[1736511670860,1.29249,3304.4,3304.3,0.73605]
[1736511671252,1.29249,3304.4,3304.3,1.18005]
[1736511673252,1.29249,3304.4,3304.3,1.63005]
[1736511676869,0.79249,3304.4,3304.3,1.63005]
[1736511677056,0.29379,3304.4,3304.3,1.63005]
[1736511678768,1e-05,3304.4,3304.3,6.63005]
[1736511679161,1e-05,3304.4,3304.3,47.43005]
[1736511680763,1e-05,3304.4,3304.3,42.43005]
[1736511682862,1e-05,3304.4,3304.3,47.43005]
[1736511686069,1e-05,3304.4,3304.3,47.47145426]
[1736511687772,0.4764,3305.4,3305.3,0.30255]
[1736511687967,0.4764,3305.4,3305.3,0.34395426]
[1736511694181,0.4764,3305.4,3305.3,0.38535852]
[1736511703485,0.4764,3305.4,3305.3,41.18535852]
[1736511704385,0.4764,3305.4,3305.3,0.38535852]
[1736511704889,0.77894,3305.4,3305.3,0.42676278]
[1736511705479,0.77894,3305.4,3305.2,3.2078]
[1736511705679,0.77894,3305.4,3305.3,0.30255]
[1736511706584,0.4764,3305.4,3305.2,3.2078]
[1736511706774,0.4764,3305.4,3304.8,0.3026]
[1736511706775,0.3026,3304.9,3304.8,0.3026]
[1736511707685,0.30264,3304.5,3304.4,0.30263]
[1736511707884,0.7565,3304.9,3304.3,0.30263]
[1736511707885,0.30264,3304.4,3304.3,0.30263]
[1736511708087,0.74424,3304.4,3304.3,41.10263]
[1736511708683,0.4416,3304.4,3304.3,0.30263]
[1736511709483,0.74424,3304.4,3304.3,0.30263]
[1736511709681,0.30266,3304.3,3304.2,0.30265]
[1736511710285,0.4416,3304.4,3304.0,40.8]
[1736511710491,3.6812,3304.2,3303.5,3.2078]
[1736511710691,0.30267,3304.0,3303.6,0.30271]
[1736511710894,0.30271,3303.7,3303.6,0.30271]
[1736511712890,0.30271,3303.6,3303.5,0.30272]
[1736511713087,0.30271,3303.6,3303.5,0.04140426]
[1736511713286,3.51051,3303.6,3303.5,0.04140426]
[1736511713788,0.30275,3303.2,3303.1,0.30275]
[1736511713991,0.4527,3303.5,3302.8,3.2078]
[1736511714190,0.30274,3303.3,3303.2,0.30274]
[1736511714896,2.77956609,3303.5,3302.8,3.2078]
[1736511715090,0.30275,3303.3,3303.1,0.30275]
[1736511715281,0.30275,3303.3,3303.2,0.30275]
[1736511715488,0.30275,3303.2,3303.1,0.30275]
[1736511715990,0.30274,3303.3,3302.9,0.30277]
[1736511716191,0.30274,3303.3,3302.8,3.2078]
[1736511716384,0.30275,3303.2,3303.1,0.30275]
[1736511716591,2.77956609,3303.5,3302.8,3.2078]
[1736511716790,0.30274,3303.3,3303.2,0.30274]
[1736511717697,0.30274,3303.3,3302.8,3.2078]
[1736511717698,0.30277,3303.0,3302.9,0.30277]
[1736511717892,2.32686609,3303.2,3302.8,3.2078]
[1736511718093,0.30277,3302.9,3302.8,3.51058]
[1736511718299,0.30277,3302.9,3302.8,3.2078]
[1736511718999,2.32686609,3302.9,3302.3,3.2078]
[1736511719198,0.30282,3302.4,3302.3,3.51063]
[1736511719910,5.53466609,3302.6,3301.9,3.6749]
[1736511720095,0.30284,3302.3,3302.1,0.30284]
[1736511720402,0.30284,3302.2,3302.1,41.10284]